Workbook

Sheet handboek algemeen
A1: Handboek modules voor het vmbo BWI | AG1: vinyl | AJ1: vinyl
AG2: schabloon | AJ2: sticker
B3: School | AG3: frostfolie | AJ3: op forex
B5: Contactpersoon
B7: Adres | O7: nr
B9: Postcode | O9: plaats
B11: Algemeen: | K11: Materiaal | M11: Zagen/frezen | O11: Montage | Q11: Zelfbouwpakket | S11: Aantal: | U11: Compleet meubel | W11: Aantal: | Y11: kosten totaal
B13: Module 1 | D13: Element A - open kast met 2 schragen | K13: 218 | M13: 0 | O13: 36 | Q13: =K13+M13 -> 218 | S13: 0 | U13: =K13+M13+O13 -> 254 | W13: 0 | Y13: =S13*Q13+W13*U13 -> 0
D15: Element B - deur incl. scharnieren | K15: 44 | M15: 0 | O15: 0 | Q15: =K15+M15 -> 44 | S15: 0 | U15: =K15+M15+O15 -> 44 | W15: 0 | Y15: =S15*Q15+W15*U15 -> 0
D17: Element C - 1 stuks lade met rails | K17: 80 | M17: 0 | O17: 0 | Q17: =K17+M17 -> 80 | S17: 0 | U17: =K17+M17+O17 -> 80 | W17: 0 | Y17: =S17*Q17+W17*U17 -> 0
D19: Element D - Werkblad 120 cm | K19: 151 | M19: 0 | O19: 0 | Q19: =K19+M19 -> 151 | S19: 0 | U19: =K19+M19+O19 -> 151 | W19: 0 | Y19: =S19*Q19+W19*U19 -> 0
D21: Element E - Werkblad 160 cm | K21: 199 | M21: 0 | O21: 0 | Q21: =K21+M21 -> 199 | S21: 0 | U21: =K21+M21+O21 -> 199 | W21: 0 | Y21: =S21*Q21+W21*U21 -> 0
D23: Totale kosten gekozen samenstelling | Y23: =SUM(Y13:Y21) -> 0
B25: Module 2 | D25: Mobile gereedschapskast | K25: 714 | M25: 0 | O25: 254 | Q25: 714 | S25: 0 | U25: =K25+M25+O25 -> 968 | W25: 0 | Y25: =S25*Q25+W25*U25 -> 0
D27: Flightcases accessoires voor Module 2 | K27: 369 | M27: 0 | O27: 0 | Q27: =K27+M27 -> 369 | S27: 0 | U27: =K27+M27+O27 -> 369 | W27: 0 | Y27: =S27*Q27+W27*U27 -> 0
D29: Totale kosten gekozen samenstelling | Y29: =SUM(Y25:Y27) -> 0
B31: Module 3 | D31: Handgereedschapkist | K31: 74 | M31: 57 | O31: 96 | Q31: =K31+M31 -> 131 | S31: 0 | U31: =K31+M31+O31 -> 227 | W31: 0 | Y31: =S31*Q31+W31*U31 -> 0
B33: Module 4 | D33: Klapschragen | K33: 99 | M33: 16 | O33: 24 | Q33: =K33+M33 -> 115 | S33: 0 | U33: =K33+M33+O33 -> 139 | W33: 0 | Y33: =S33*Q33+W33*U33 -> 0
B35: Module 5 | D35: Info zuil | K35: 132 | M35: 129 | O35: 149 | Q35: =K35+M35 -> 261 | S35: 0 | U35: =K35+M35+O35 -> 410 | W35: 0 | Y35: =S35*Q35+W35*U35 -> 0
D37: Optie met magnetische plaat | K37: 574 | M37: 129 | O37: 149 | Q37: =K37+M37 -> 703 | S37: 0 | U37: =K37+M37+O37 -> 852 | W37: 0 | Y37: =S37*Q37+W37*U37 -> 0
D39: Totale kosten gekozen samenstelling | Y39: =SUM(Y35:Y37) -> 0
B41: Module 6 | D41: Wisselwand | K41: 990 | Q41: =K41+M41 -> 990 | S41: 0 | U41: =K41+M41+O41 -> 990 | W41: 0 | Y41: =S41*Q41+W41*U41 -> 0
B43: Module 7 | D43: Podiumkast | K43: 943 | M43: 442 | O43: 288 | Q43: =K43+M43 -> 1385 | S43: 0 | U43: =K43+M43+O43 -> 1673 | W43: 0 | Y43: =S43*Q43+W43*U43 -> 0
B45: Module 8 | D45: Stamtafel | K45: 139 | M45: 47 | Q45: =K45+M45 -> 186 | S45: 0 | U45: =K45+M45+O45 -> 186 | W45: 0 | Y45: =S45*Q45+W45*U45 -> 0
B47: Module 9 | D47: Stellingkast - 1 deel van 60cm | K47: 241 | Q47: =K47+M47 -> 241 | S47: 0 | U47: 241 | W47: 0 | Y47: =W47*U47 -> 0
D49: Stellingkast - 1 aanbouwdeel van 60cm | K49: 187 | Q49: =K49+M49 -> 187 | S49: 0 | U49: 187 | W49: 0 | Y49: =S49*Q49+W49*U49 -> 0
D51: Totale kosten gekozen samenstelling | Y51: =SUM(Y47:Y49) -> 0
D53: Totale kosten gekozen Modules | Y53: =Y51+Y45+Y43+Y41+Y39+Y35+Y33+Y31+Y29+Y23 -> 0
B56: Specifiek: | K56: Materiaal | M56: Zagen/frezen | O56: Uren | Q56: Zelf uitvoeren | S56: Aantal: | U56: Laten doen | W56: Aantal: | Y56: kosten totaal
B58: Losse elementen | D58: a- | S58: 0 | W58: 0
D60: b- | S60: 0 | W60: 0 | AE60: a-Presentatiewand schilderruimte
D62: c- | S62: 0 | W62: 0 | AE62: b-plakplek
D64: d- | S64: 6 | W64: 0 | AE64: c-reliefpanelen leslokaal
D66: Totale kosten gekozen elementen | Y66: =SUM(Y54:Y64) -> 0 | AE66: d-houten stelling kasten op zolder
B68: Ruimtelijke aanpassing | D68: a- | S68: 0 | W68: 0 | AE68: Totale kosten gekozen elementen
D70: b | S70: 0 | W70: 0 | AE70: a- opslagruimte
D72: Totale kosten gekozen aanpassingen | Y72: =SUM(Y60:Y70) -> 0
K74: m2 | M74: prijs per m2 | O74: kosten verf | Q74: Zelf uitvoeren | S74: uren | U74: Laten doen | W74: uren | Y74: kosten totaal
B76: Schilderwerk | D76: Wanden | K76: 0 | M76: 4 | O76: =K76*M76 -> 0 | S76: 0 | U76: =W76*45 -> 0 | W76: 0 | Y76: =U76+O76 -> 0
D78: Deuren | K78: m2 | Y78: =U78+O78 -> 0
D80: Kozijnen | K80: m1 | Y80: 0
D82: Totale uren intern | S82: =SUM(S76:S81) -> 0
D84: Totale kosten materiaal en uren | Y84: =Y80+Y78+Y76 -> 0
B86: Grafisch: | K86: Materiaal | M86: Afmeting | O86: Aantal: | Q86: Kosten | S86: Afmeting | U86: Aantal: | W86: Kosten | Y86: kosten totaal
B88: Pictogrammen | D88: Schilderen | K88: schabloon | M88: 40cm diameter | O88: 0 | Q88: 11 | U88: 0 | W88: 0 | Y88: =W88*U88+Q88*O88 -> 0
D90: Metselen | K90: schabloon | M90: 40cm diameter | O90: 0 | Q90: 11 | U90: 0 | Y90: =W90*U90+Q90*O90 -> 0
D92: Infra | K92: frostfolie | M92: 40cm diameter | O92: 0 | Q92: 12 | U92: 0 | Y92: =W92*U92+Q92*O92 -> 0
D94: Timmeren | K94: vinyl | O94: 0 | Q94: 10 | U94: 0 | Y94: =W94*U94+Q94*O94 -> 0
B96: Wandteksten | D96: a | K96: vinyl | M96: cm | O96: 0 | U96: 0 | Y96: =W96*U96+Q96*O96 -> 0
D98: b | O98: 0 | U98: 0 | Y98: =W98*U98+Q98*O98 -> 0
D100: c | O100: 0 | U100: 0 | Y100: =W100*U100+Q100*O100 -> 0
D102: d | O102: 0 | U102: 0 | Y102: =W102*U102+Q102*O102 -> 0
B104: Tekstblokken | D104: quote | K104: op forex | O104: 0 | Q104: 0 | U104: 0 | W104: 0 | Y104: =W104*U104+Q104*O104 -> 0
B106: Full colour print | K106: op forex | M106: m2 | O106: 0 | U106: 0 | Y106: =W106*U106+Q106*O106 -> 0
B108: Zwart/wit print | K108: sticker | O108: 0 | U108: 0 | Y108: =W108*U108+Q108*O108 -> 0
D110: Totale kosten grafisch | Y110: =SUM(Y88:Y109) -> 0
B113: Rekenhulp budget | Y113: kosten totaal
D115: totaal beschikbaar budget | Y115: 0
D117: totale kosten gekozen modules | Y117: =Y53 -> 0
D119: totale kosten specifieke elementen | Y119: =Y66 -> 0
D121: Totale kosten gekozen aanpassingen | Y121: =Y72 -> 0
D123: Totale kosten schilderwerk | Y123: =Y84 -> 0
D125: Totale kosten grafisch | Y125: =Y110 -> 0
D127: saldo | Y127: =Y125+Y123+Y121+Y119+Y117+Y115 -> 0
B130: Kleuradvies
B132: basis antraciet | D132: Frescolithe 6525 | Y132: Grijs
B134: licht grijs | D134: Frescolithe 6524 | Y134: Licht grijs
B136: Kleur accenten
D138: Frescolithe 6392 | Y138: Groen
D140: Frescolithe 6314 | Y140: Turquois
D142: Frescolithe 6736 | Y142: Lila
D144: Frescolithe 6134 | Y144: Rood
D146: Frescolithe 6226 | Y146: Paars
D148: Frescolithe 6226 | Y148: Blauw

Sheet Blad1
